Cogmind - Beta 14 @@@ ROGUE MODE // 2024.11.11 @ 01:22:06 Player: Ripper Result: Destroyed by S-10 Pest with Light Assault Rifle Performance ------------- Evolutions (0) 0 Regions Visited (1) 200 Robots Destroyed (12) 60 Value Destroyed (379) 379 Prototype IDs (2) 40 Alien Tech Used (0) 0 Bonus (0) 0 TOTAL SCORE: 679 Bonus ------- None Cogmind --------- Core Integrity 0/250 Matter 300/300 Energy 100/100 System Corruption 0% Temperature Cool (0) Movement Core (1350) Ox26 Location -10/Materials Parts ------- > --- POWER (1) -------- (None) > --- PROPULSION (2) --- (None) > --- UTILITY (2) ------ Huge Storage Unit > --- WEAPON (2) ------- Small Laser > --- INVENTORY (25) --- Light Ion Engine Light Ion Engine Aluminum Leg Aluminum Leg Peak State ------------ > --- POWER ------------ Light Ion Engine > --- PROPULSION ------- Light Treads Light Treads > --- UTILITY ---------- Seismic Detector > --- WEAPON ----------- Assault Rifle Light Assault Rifle > --- INVENTORY -------- Ion Engine Aluminum Leg Aluminum Leg [Rating: 6] Favorites ----------- Power Ion Engine Engine Ion Engine Propulsion Aluminum Leg Treads Light Treads Leg Aluminum Leg Utility Seismic Detector Device Seismic Detector Storage Huge Storage Unit Weapon Assault Rifle Energy Gun Small Laser Ballistic Gun Assault Rifle Build | -11 -10 ------- Run | Yrd Mat Slots Evolved . | . . Power . | . . Propulsion . | . . Utility . | . . Weapon . | . . Parts Attached 16 | 9 7 Power 6 | 4 2 Engine 6 | 4 2 Core . | . . Reactor . | . . Propulsion 4 | 2 2 Treads 2 | 2 . Leg 2 | . 2 Wheel . | . . Hover . | . . Flight . | . . Utility 2 | 1 1 Device 1 | 1 . Storage 1 | . 1 Processor . | . . Hackware . | . . Protection . | . . Artifact . | . . Weapon 4 | 2 2 Energy Gun 2 | . 2 Energy Cannon . | . . Ballistic Gun 2 | 2 . Ballistic Cannon . | . . Launcher . | . . Special Weapon . | . . Impact Weapon . | . . Slashing Weapon . | . . Piercing Weapon . | . . Special Melee Weapon . | . . Unidentified Prototypes . | . . Parts Lost 7 | . 7 Power 1 | . 1 Propulsion 3 | . 3 Utility 1 | . 1 Weapon 2 | . 2 Highest Loss Streak 4 | . 4 To Critical Strikes . | . . Average Slot Usage (%) 80 | . 80 Engine 13 | . 13 Treads 9 | . 9 Leg 16 | . 16 Device 7 | . 7 Storage 5 | . 5 Energy Gun 7 | . 7 Ballistic Gun 19 | . 19 Peak Build Rating 6 | 6 6 Average Rating 5 | 4 5 On Entrance 3 | . 6 Naked Turns . | . . Heaviest Build 88 | 9 88 Greatest Support 40 | 40 40 Greatest Overweight (x) 27 | . 27 Average Overweight (x) . | . . Largest Inventory Capacity 25 | 5 25 Average Capacity 10 | 5 12 Most Carried 5 | 5 5 Average Carried 4 | 3 4 Final Capacity 25 | 5 25 Final Carried 4 | 4 4 Class Distribution -------------------- 100% | Mutant Dominant Class ---------------- Mutant | -10/Materials Resources | -11 -10 ----------- Run | Yrd Mat Matter Collected 456 | 288 168 Remotely . | . . Salvage Created 409 | 36 373 Parts 23 | 3 20 Haulers Intercepted . | . . Recyclers Shooed . | . . Parts Field Recycled . | . . Retrieved Matter . | . . Parts Self-Destructed . | . . Prevented . | . . Kills | -11 -10 ------- Run | Yrd Mat Combat Hostiles Destroyed 10 | . 10 Guns 10 | . 10 Classes Destroyed 3 | 2 1 Tunneler 1 | 1 . Recycler 1 | 1 . Grunt 10 | . 10 Best Kill Streak 3 | 2 3 Combat Bots Only 3 | . 3 Max Kills in Single Turn 1 | 1 1 Gunslinging . | . . Exploded . | . . Melee . | . . Uniques/NPCs Destroyed . | . . Combat | -11 -10 -------- Run | Yrd Mat Hostile Shots Fired 139 | . 139 Missed 29 | . 29 Damage Taken 1196 | . 1196 Core 253 | . 253 Absorbed by Shields . | . . Core Remaining (%) 100 | 100 . Volleys Fired 38 | . 38 Largest 2 | . 2 Hottest 80 | . 80 Shots Fired 73 | . 73 Gun 73 | . 73 Cannon . | . . Launcher . | . . Special . | . . Kinetic 58 | . 58 Thermal 15 | . 15 Explosive . | . . Electromagnetic . | . . Robot Hit Streak 20 | . 20 Robot Miss Streak 5 | . 5 Penetration Max . | . . Secondary Targets 2 | . 2 Max Gunslinging Chain 1 | . 1 Shots Hit Robots 52 | . 52 Core Hits 24 | . 24 Critical Kills . | . . Critical Parts Destroyed 1 | . 1 Critical Strikes 1 | . 1 Destroy 1 | . 1 Melee Attacks . | . . Impact . | . . Slashing . | . . Piercing . | . . Sneak Attacks . | . . Combat Hostiles . | . . Follow-up Attacks . | . . Damage Inflicted 552 | 4 548 Guns 543 | . 543 Cannons . | . . Explosions . | . . Melee . | . . Ramming 9 | 4 5 Kinetic 402 | . 402 Thermal 141 | . 141 Explosive . | . . Electromagnetic . | . . Impact . | . . Slashing . | . . Piercing . | . . Highest Corruption . | . . Average Corruption . | . . Corruption Purged . | . . Corruption Blocked . | . . Overload Shots . | . . Overflow Damage . | . . Projectiles . | . . Explosions . | . . Melee . | . . Knockbacks . | . . Impact . | . . Kinetic . | . . Secondary . | . . Self-Inflicted Damage . | . . Shots . | . . Rammed 1 | 1 . Targets Rammed 5 | 3 2 Kicked 2 | . 2 Crushed 2 | 2 . Highest Temperature 82 | . 82 Average Temperature 20 | . 20 Received Heat Transfer 624 | . 624 Siege Activations . | . . Robots Corrupted . | . . Combat Hostiles . | . . Parts Fried . | . . Impact Corruptions . | . . Robots Melted . | . . Combat Hostiles . | . . Parts Melted 1 | . 1 Heat Transferred 325 | . 325 Parts Sabotaged . | . . Parts Stolen . | . . Parts Stripped . | . . Power Chain Reactions . | . . Alert | -11 -10 ------- Run | Yrd Mat Peak Influence 271 | 10 271 Initial 6 | . 6 Average 109 | 5 134 Maximum Alert Level 1 | . 1 Low Security (%) 81 | 100 76 Level 1 18 | . 23 Level 2 . | . . Level 3 . | . . Level 4 . | . . Level 5 . | . . High Security . | . . Max Security . | . . Squads Dispatched 3 | . 3 Investigation 1 | . 1 Extermination . | . . Reinforcement 2 | . 2 Assault . | . . Garrison . | . . Intercept . | . . Searches Triggered . | . . Construction Impeded . | . . Haulers Reinforced . | . . Active Scanning Responses . | . . Cargo Convoy Interrupts . | . . Stealth | -11 -10 --------- Run | Yrd Mat Distress Signals 2 | . 2 Communications Jammed . | . . Distress Signals . | . . Times Spotted 18 | . 18 Peak Tracking Total 6 | . 6 Tactical Retreats 2 | . 2 Traps | -11 -10 ------- Run | Yrd Mat Traps Triggered 1 | . 1 Indirectly . | . . Trap Hack Attempts . | . . Triggered . | . . Disarmed . | . . Reprogrammed . | . . Reused . | . . Traps Extracted . | . . Installed . | . . Triggered . | . . Machines | -11 -10 ---------- Run | Yrd Mat Machines Disabled . | . . Max in Single Turn . | . . Machines Repaired . | . . Machines Dismantled . | . . Machines Sabotaged . | . . Overloaded Fab Kills . | . . Hacking | -11 -10 --------- Run | Yrd Mat Machines Accessed 2 | . 2 Terminals 2 | . 2 Fabricators . | . . Repair Stations . | . . Recycling Units . | . . Scanalyzers . | . . Garrison Access . | . . Total Hacks 3 | . 3 Successful 2 | . 2 Failed 1 | . 1 Catastrophic . | . . Database Lockouts . | . . Manual . | . . Terminals 3 | . 3 Fabricators . | . . Repair Stations . | . . Recycling Units . | . . Scanalyzers . | . . Garrison Access . | . . Terminal Hacks 2 | . 2 Record 1 | . 1 Prototype ID Bank 1 | . 1 Fabricator Hacks . | . . Repair Station Hacks . | . . Recycling Unit Hacks . | . . Scanalyzer . | . . Garrison Access Hacks . | . . Unauthorized Hacks . | . . Terminals . | . . Fabricators . | . . Repair Stations . | . . Recycling Units . | . . Scanalyzers . | . . Garrison Access . | . . Data Cores Recovered . | . . Used . | . . Hacking Detections . | . . Full Trace Events . | . . Feedback Events . | . . Feedback Blocked . | . . Robot Schematics Acquired . | . . Robots Built . | . . Authchips . | . . Time . | . . Total Robot Build Rating . | . . Part Schematics Acquired . | . . Parts Built . | . . Authchips . | . . Time . | . . Total Part Build Rating . | . . Parts Repaired . | . . Time . | . . Parts Recycled . | . . Recycled Matter . | . . Retrieved Matter . | . . Retrieved Components . | . . Parts Scanalyzed . | . . Part Schematics Acquired . | . . Parts Damaged . | . . Bothacking | -11 -10 ------------ Run | Yrd Mat Used RIF Installer . | . . Robots Hacked . | . . Non-combat . | . . Combat . | . . Robot Hacks Applied . | . . Relay Couplers Released . | . . Fabnet Peak Effective % . | . . Robots Rewired . | . . Allies Hacked . | . . Hacks Repelled . | . . Allies | -11 -10 -------- Run | Yrd Mat Total Allies . | . . Largest Group . | . . Highest-Rated Group . | . . Highest-Rated Ally . | . . Total Orders . | . . Ally Attacks . | . . Total Damage . | . . Kills . | . . Allies Corrupted . | . . Allies Melted . | . . Intel | -11 -10 ------- Run | Yrd Mat Robot Analysis Total . | . . Derelict Logs Recovered . | . . Drone Launches . | . . Drone Recoveries . | . . Exploration | -11 -10 ------------- Run | Yrd Mat Turns Passed 444 | 88 356 Spaces Moved 151 | 37 114 Core 3 | 2 1 Treads 79 | 35 44 Legs 69 | . 69 Wheels . | . . Hover . | . . Flight . | . . Fastest Speed 50 | 50 120 Average Speed 183 | 154 193 Slowest Speed 1400 | 160 1400 Overloaded Moves . | . . Propulsion Burnouts . | . . Robots Hopped . | . . Cave-ins Triggered . | . . Exploration Rate (%) 16 | 4 29 Regions Visited 1 Branch Regions . Pre-discovered Areas . | . . Known Exits Taken . | . . Unknown Exits Taken 1 | 1 . Scrap Searched . | . . Spaces Dug . | . . Terrain Destroyed . | . . Melee . | . . Projectile . | . . AOE . | . . Terrain Rammed . | . . Walls Destroyed . | . . Machines Disabled . | . . Actions | -11 -10 --------- Run | Yrd Mat Total 249 | 65 184 Wait 17 | 7 10 Move 150 | 36 114 Hop . | . . Pick Up 18 | 10 8 Fast Attach . | . . Attach 10 | 6 4 Detach . | . . Swap 6 | 3 3 Drop 5 | . 5 Fire 38 | . 38 Melee . | . . Ram . | . . Kick 2 | . 2 Crush 3 | 3 . Escape Stasis . | . . Rewire . | . . Trap . | . . Miscellaneous . | . . Route ------- -11/Scrapyard -10/Materials History --------- Turn | Location | Event 19 | -11/Scrapyard | Discovered new exit (range 16) 89 | -11/Scrapyard | Entered Materials 312 | -10/Materials | Build established: Mutant 402 | -10/Materials | Core integrity fell below 50% 442 | -10/Materials | Core integrity fell below 20% 445 | -10/Materials | Destroyed by S-10 Pest with Light Assault Rifle Last Messages --------------- G-47 Trooper suffers critical hit (Destroy). Destroyed Particle Gun. K-01 Serf collects debris. Kicked K-01 Serf. K-01 Serf collects debris. K-01 Serf sends out distress signal. K-01 Serf cleans the Terminal. K-01 Serf collects debris. Assault Rifle destroyed. K-01 Serf cleans the Terminal. Kicked K-01 Serf. Aluminum Leg melted. G-34 Mercenary destroyed. Acquired 20 matter. Aluminum Leg destroyed. Ion Engine destroyed. Aluminum Leg destroyed. R-06 Scavenger collects Ion Engine. Sml. Laser destroyed. U-05 Engineer lays Concrete. Map ----- +----------------------------------------------------+ | ###%# T #???????????????????????????????? | | #!# ######## #???????????????????????????????? | | +=[ ##??#####+#######?????????????????????????? | | #= #???# [%+ #?????????????????????????? | | # ##### """=%#### #?????????????????????????? | | + + """ =#??# #?????????????????????????? | | # ######## """[ ####+##????????????????????????? | | # #??????# ## #????????????????????????? | | ?# #??????# % ## #????????????????????????? | | ?# ###########+#### #????????????????????????? | | ??# ## #????????????????????????? | | ??# ## #????????????????????????? | | ??# T ## "#????????????????????????? | | ??# ## T#????????????????????????? | | ??# """ """ ## *"#????????????????????????? | | ??# """ """ ## =!*#????????????????????????? | | ??# """ """ k ####/##????????????????????????? | | ??# ####%#?????????????????????????? | | ??# #????????????? ?????????? | | ###### ########+### u###????????? ?????????? | | # #??????????# uo #??????? #????????? | | # #??????????# g ####### #????????? | | # #??????????# g k w #????????? | | """ # ###????????# #????????? | | """ # #????????# [[! #????????? | | """ + #????????# @ [! #???????? | | # #????????# [! #???????? | | """ # #????????# ????????? | | """ # #????????# s s ????????? | | """ # #????????# ##+####### s ?????????? | | # #????????# #######? ????????+#?????????? | | ###### #????????# ?????????""??????????????????? | | ?????# #???????? ?????????""??????????????????? | | ?????# #??????? ?????????????????????????????? | | ?????# #??????# ??????????????????????????????? | | ?????# #???????????????????????????????????????? | | ?????# #???????????????????????????????????????? | | ?????# #???????????????????????????????????????? | | ?????#####???????????????????????????????????????? | | ?????????????????????????????????????????????????? | | ?????????????????????????????????????????????????? | | ?????????????????????????????????????????????????? | | ?????????????????????????????????????????????????? | | ?????????????????????????????????????????????????? | | | | | | | | | | | | | +----------------------------------------------------+ Best States ------------- Heat Dissipation 25 Energy Generation 10 Energy Capacity 250 Matter Stores 300 Matter Capacity 300 Sight Range 16 Terrain Scan Density 10 Evasion (%) 55 Recoil Reduction 2 Item Schematics ----------------- None Robot Schematics ------------------ None Fabricated ------------ Nothing Alien Tech Used ----------------- None Achievements -------------- None Challenges ------------ None Game ------ Seed NuclearStasisKatana Manual? 0 Play Time 00:07:17 Cumulative 16.8 hours Start 2024.11.11 @ 01:15:21 End 2024.11.11 @ 01:22:06 Sessions 1 Manual Loads 0 Difficulty Rogue Special Mode None Game No. 54 Rogue 54 Adventurer 0 Explorer 0 Win Type - Total 0 Types 0/0/0/0/0/0/0/0/0 Lore% 5 Gallery% 20 Achievement% 18 Wizard Run 0 Options --------- Layout 1 ASCII 0 Keyboard 0 Movement Numpad Keybinds 0 Fullscreen 1 Font 24/Smallcaps Map View 50x35 Zoom Use 0% Tactical HUD 0 Map Filters NONE Filters NONE Steam 1 RUN: b9486dc2-aa30-4451-8a42-c90d018f1809